bitfinex-derivatives/quotes_SOLF0:USTF0_20241107
["timestamp","ask_amount","ask_price","bid_price","bid_amount"]
[1730996600838,19.99150532,191.72,191.64,2.6064]
[1730996600839,2.6059,191.69,191.64,2.6064]
[1730996601146,19.99150532,191.72,191.59,2.4932]
[1730996601335,4.12,191.74,191.59,2.4932]
[1730996601936,4.12,191.74,191.65,2.6063]
[1730996602339,2.6057,191.71,191.65,2.6063]
[1730996602735,2.6057,191.71,191.59,2.4932]
[1730996602736,2.6057,191.71,191.66,2.6062]
[1730996603337,2.6057,191.7,191.59,2.4932]
[1730996603541,2.6057,191.7,191.66,2.6062]
[1730996603944,2.6057,191.7,191.59,2.4932]
[1730996604242,2.6057,191.7,191.65,2.6063]
[1730996604441,2.6059,191.69,191.65,2.6063]
[1730996605237,2.6058,191.7,191.65,2.6063]
[1730996605445,19.99150532,191.75,191.69,2.6058]
[1730996605945,4.8771,191.76,191.69,2.6058]
[1730996606647,2.6052,191.74,191.69,2.6058]
[1730996608337,4.12,191.79,191.59,2.4932]
[1730996608338,2.6058,191.7,191.65,2.6064]
[1730996608542,19.99150532,191.75,191.65,2.6064]
[1730996608747,19.99150532,191.75,191.59,4.8982]
[1730996608949,19.99150532,191.72,191.59,4.8982]
[1730996609641,2.6058,191.7,191.59,4.8982]
[1730996609841,19.99150532,191.75,191.59,4.8982]
[1730996610550,2.6057,191.71,191.66,2.6062]
[1730996610743,19.99150532,191.75,191.66,2.6062]
[1730996611352,2.6057,191.71,191.66,2.6062]
[1730996611647,19.99150532,191.75,191.66,2.6062]
[1730996611852,2.6056,191.71,191.66,2.6062]
[1730996612453,19.99150532,191.75,191.61,19.99150532]
[1730996612643,19.99150532,191.78,191.61,19.99150532]
[1730996612842,2.6053,191.73,191.67,2.606]
[1730996613048,19.99150532,191.78,191.67,2.606]
[1730996613248,19.99150532,191.75,191.61,19.99150532]
[1730996613451,19.99150532,191.75,191.65,2.6063]
[1730996614041,2.6058,191.7,191.65,2.6063]
[1730996614448,2.606,191.68,191.64,2.6065]
[1730996614653,19.99150532,191.75,191.61,4.12]
[1730996615050,19.99150532,191.78,191.62,19.99150532]
[1730996615451,19.99150532,191.78,191.67,2.6061]
[1730996615755,19.99150532,191.78,191.61,4.12]
[1730996615756,19.99150532,191.75,191.61,4.12]
[1730996615949,22.54219364,191.75,191.61,4.12]
[1730996616258,2.6061,191.68,191.6,4.12]
[1730996616642,2.6061,191.68,191.63,2.6066]
[1730996617148,2.6063,191.66,191.59,4.8982]
[1730996617348,2.6063,191.66,191.62,2.6068]
[1730996618050,2.606,191.68,191.64,2.6065]
[1730996618453,2.3911,191.71,191.59,4.8982]
[1730996618749,2.3911,191.71,191.65,2.6063]
[1730996619246,2.3911,191.71,191.63,2.6066]
[1730996619448,2.3911,191.71,191.6,19.99150532]
[1730996619654,2.6061,191.68,191.6,19.99150532]
[1730996619852,2.3911,191.71,191.64,2.6065]
[1730996620459,2.3911,191.71,191.66,2.6062]
[1730996620957,2.6058,191.7,191.66,2.6062]
[1730996621465,2.3911,191.71,191.66,2.6062]
[1730996621859,2.3911,191.71,191.64,2.6064]
[1730996622065,2.3911,191.71,191.62,12.50993537]
[1730996622267,14.90103537,191.71,191.6,12.50993537]
[1730996622562,2.6061,191.68,191.64,2.6065]
[1730996622762,2.6061,191.68,191.6,12.50993537]
[1730996622763,14.90103537,191.71,191.6,12.50993537]
[1730996622963,2.6062,191.67,191.63,2.6066]
[1730996623267,14.90103537,191.71,191.6,12.50993537]
[1730996623457,2.6064,191.66,191.6,12.50993537]
[1730996623660,2.6064,191.66,191.62,2.6068]
[1730996624159,14.90103537,191.71,191.65,2.6063]
[1730996624361,14.90103537,191.71,191.6,12.50993537]
[1730996625460,2.6063,191.66,191.62,2.6068]
[1730996626559,2.6062,191.67,191.62,2.6068]
[1730996626951,14.90103537,191.71,191.64,2.6065]
[1730996627162,2.606,191.69,191.64,2.6065]
[1730996628356,2.3911,191.71,191.64,2.6065]
[1730996628770,2.6059,191.69,191.64,2.6065]
[1730996629061,2.3911,191.71,191.64,2.6065]
[1730996629460,2.606,191.68,191.64,2.6065]
[1730996629661,2.3911,191.71,191.64,2.6065]
[1730996629859,2.3911,191.71,191.65,2.6063]
[1730996630058,2.6059,191.69,191.65,2.6063]
[1730996631555,2.6061,191.68,191.65,2.6063]
[1730996631752,2.3911,191.71,191.64,2.6064]
[1730996631964,2.6061,191.68,191.64,2.6064]
[1730996632457,12.50993537,191.7,191.5,12.93512586]
[1730996632666,2.607,191.61,191.57,2.6074]
[1730996633164,12.50993537,191.64,191.55,2.6076]
[1730996633757,2.6072,191.59,191.55,2.6076]
[1730996634163,12.50993537,191.64,191.51,12.50993537]
[1730996634365,2.6075,191.57,191.53,2.6079]
[1730996635158,12.50993537,191.62,191.53,2.6079]
[1730996635871,2.6073,191.59,191.53,2.6079]
[1730996636072,2.5117,191.68,191.56,2.6075]
[1730996636073,12.50993537,191.64,191.56,2.6075]
[1730996636972,12.50993537,191.64,191.51,16.62993537]
[1730996637171,12.50993537,191.62,191.51,16.62993537]
[1730996637371,2.6074,191.58,191.51,16.62993537]
[1730996637564,12.50993537,191.56,191.45,2.609]
[1730996637767,12.50993537,191.53,191.43,12.50993537]
[1730996638165,12.50993537,191.53,191.45,2.609]
[1730996638166,2.6085,191.5,191.45,2.609]
[1730996638672,2.6085,191.5,191.43,12.50993537]
[1730996638868,2.6085,191.5,191.45,2.6091]
[1730996639065,2.6085,191.5,191.43,12.50993537]
[1730996639572,12.50993537,191.53,191.46,2.609]
[1730996639772,4.12,191.55,191.46,12.50993537]
[1730996640272,2.6081,191.53,191.48,2.6086]
[1730996640466,5.1557,191.57,191.48,12.50993537]
[1730996640776,2.6076,191.56,191.51,2.6083]
[1730996641870,17.66563537,191.57,191.49,2.6086]
[1730996642178,17.66563537,191.57,191.46,12.50993537]
[1730996642379,2.6077,191.56,191.51,2.6083]
[1730996642568,2.6077,191.56,191.48,12.50993537]
[1730996643077,2.6077,191.56,191.52,2.6082]
[1730996643274,2.6077,191.56,191.48,12.50993537]
[1730996643669,2.6077,191.56,191.51,2.6082]
[1730996643872,7.7632,191.57,191.48,12.50993537]
[1730996644274,12.50993537,191.59,191.52,2.6081]
[1730996644571,2.6076,191.57,191.52,2.6081]
[1730996645175,12.50993537,191.59,191.51,12.50993537]
[1730996645375,2.6071,191.6,191.55,2.6077]
[1730996645678,2.6071,191.6,191.51,12.50993537]
[1730996646184,2.607,191.61,191.56,2.6075]
[1730996647076,12.50993537,191.62,191.56,2.6075]
[1730996647077,15.11673537,191.62,191.56,2.6075]
[1730996647276,12.50993537,191.62,191.56,2.6075]
[1730996647874,12.50993537,191.56,191.49,2.6085]
[1730996648576,12.50993537,191.56,191.46,12.50993537]
[1730996648782,15.11753537,191.56,191.46,12.50993537]
[1730996649478,15.11753537,191.56,191.5,2.6083]
[1730996649681,2.6075,191.57,191.48,12.50993537]
[1730996649876,12.50993537,191.59,191.48,12.50993537]
[1730996650181,2.6081,191.53,191.46,12.50993537]
[1730996651580,12.50993537,191.57,191.46,12.50993537]
[1730996652280,15.11753537,191.57,191.52,2.6081]
[1730996652776,12.50993537,191.57,191.52,2.6081]
[1730996653375,2.6078,191.55,191.52,2.6081]
[1730996653575,12.50993537,191.57,191.52,2.6081]
[1730996654385,2.6077,191.56,191.52,2.6081]
[1730996655676,2.6077,191.56,191.46,12.50993537]
[1730996655877,2.6077,191.56,191.53,2.608]
[1730996656070,2.6074,191.58,191.53,2.608]
[1730996656274,12.50993537,191.59,191.53,2.608]
[1730996656475,12.50993537,191.59,191.54,2.6079]
[1730996656675,2.6075,191.57,191.54,2.6079]
[1730996657280,2.6075,191.57,191.53,2.608]
[1730996657882,2.6077,191.56,191.52,2.6081]
[1730996658480,12.50993537,191.59,191.5,2.411]
[1730996658679,2.6078,191.55,191.51,2.6083]
[1730996659078,2.6077,191.56,191.52,2.608]
[1730996659280,2.6077,191.56,191.5,2.411]
[1730996659481,12.50993537,191.59,191.5,2.411]
[1730996659674,2.6077,191.56,191.5,2.411]
[1730996660182,12.50993537,191.59,191.52,2.6081]
[1730996660376,2.6078,191.55,191.5,2.411]
[1730996660682,2.6078,191.55,191.52,2.6081]
[1730996661575,2.6077,191.56,191.53,2.608]
[1730996663185,2.6076,191.57,191.53,2.608]
[1730996663388,12.50993537,191.59,191.5,2.411]
[1730996663681,4.1,191.62,191.55,2.6076]
[1730996663682,2.6071,191.6,191.55,2.6076]
[1730996664184,2.607,191.61,191.57,2.6074]
[1730996665785,15.11633537,191.65,191.6,2.607]
[1730996665993,2.6064,191.65,191.6,2.607]
[1730996666189,2.6064,191.65,191.57,12.50993537]
[1730996666386,2.6064,191.65,191.61,2.6068]
[1730996667285,12.50993537,191.67,191.58,2.4682]
[1730996667483,2.6059,191.69,191.64,2.6065]
[1730996667684,12.50993537,191.7,191.6,12.50993537]
[1730996668088,2.5302,191.76,191.62,12.50993537]
[1730996668282,12.50993537,191.74,191.62,12.50993537]
[1730996668489,2.6056,191.72,191.66,2.6062]
[1730996668992,2.6056,191.72,191.62,12.50993537]
[1730996669180,2.6056,191.72,191.67,2.6061]
[1730996669383,12.50993537,191.74,191.62,12.50993537]
[1730996669891,12.50993537,191.74,191.67,2.6061]
[1730996670083,2.6055,191.72,191.67,2.6061]
[1730996670486,2.6055,191.72,191.62,12.50993537]
[1730996670790,2.6053,191.73,191.62,12.50993537]
[1730996670987,2.6053,191.73,191.61,4.1]
[1730996671187,2.6049,191.76,191.67,12.50993537]
[1730996671490,2.6049,191.76,191.68,5.0487]
[1730996671696,48.46620812,191.78,191.68,5.0487]
[1730996671992,4.7847,191.81,191.7,12.50993537]
[1730996672180,4.7847,191.81,191.73,2.6052]
[1730996672381,2.6046,191.78,191.73,2.6052]
[1730996673496,4.7847,191.81,191.73,2.6052]
[1730996673497,2.6044,191.8,191.76,2.6049]
[1730996673694,12.50993537,191.84,191.75,12.50993537]
[1730996673891,17.34373537,191.87,191.77,12.50993537]
[1730996674795,2.6033,191.88,191.82,2.6041]
[1730996675491,4.1,191.93,191.83,12.50993537]
[1730996675492,12.50993537,191.92,191.83,12.50993537]
[1730996676084,2.6027,191.92,191.86,2.6035]
[1730996676288,12.50993537,191.94,191.86,2.6035]
[1730996676484,12.50993537,191.94,191.83,12.50993537]
[1730996676695,2.603,191.9,191.84,2.6037]
[1730996676896,12.50993537,191.94,191.83,12.50993537]
[1730996677090,12.50993537,191.92,191.83,12.50993537]
[1730996677286,12.50993537,191.92,191.82,4.1]
[1730996677691,2.6034,191.87,191.82,4.1]
[1730996678085,12.50993537,191.92,191.82,4.1]
[1730996678397,12.50993537,191.92,191.82,6.704]
[1730996678793,12.50993537,191.94,191.83,12.50993537]
[1730996679889,2.6029,191.91,191.85,2.6037]
[1730996680401,2.6029,191.91,191.82,4.1]
[1730996680590,2.6029,191.91,191.83,12.50993537]
[1730996681802,2.6029,191.91,191.85,2.6037]
[1730996682102,12.50993537,191.94,191.83,12.50993537]
[1730996682801,12.50993537,191.94,191.85,12.50993537]
[1730996683397,2.6027,191.92,191.87,2.6034]
[1730996683594,12.50993537,191.94,191.87,2.6034]
[1730996684098,12.50993537,191.91,191.79,12.50993537]
[1730996684300,12.50993537,191.91,191.79,14.98133537]
[1730996684893,2.6035,191.87,191.81,2.6041]
[1730996686999,2.6035,191.87,191.82,12.50993537]
[1730996687708,2.6033,191.88,191.82,15.11393537]
[1730996688502,2.6032,191.89,191.84,2.6037]
[1730996688709,12.50993537,191.94,191.84,2.6037]
[1730996689102,12.50993537,191.94,191.84,15.11363537]
[1730996689304,12.50993537,191.94,191.85,2.6037]
[1730996689910,2.6031,191.9,191.85,2.6037]
[1730996690709,37.58,192.02,191.84,12.50993537]
[1730996690710,12.50993537,192.04,191.89,12.50993537]
[1730996690904,2.5079,192.03,191.94,12.50993537]
[1730996691713,2.6018,192.0,191.94,15.11233537]
[1730996693113,2.6019,191.98,191.94,12.50993537]
[1730996694209,2.6015,192.01,191.94,12.50993537]
[1730996694414,12.50993537,192.02,191.92,4.08]
[1730996694916,2.6021,191.97,191.92,4.08]
[1730996695503,12.50993537,192.02,191.92,4.08]
[1730996695712,2.6018,191.99,191.92,4.08]
[1730996696016,12.50993537,192.02,191.89,2.4656]
[1730996696214,2.6023,191.95,191.9,12.50993537]
[1730996697314,12.50993537,192.01,191.9,15.11293537]
[1730996697315,2.6022,191.96,191.9,15.11293537]
[1730996697710,12.50993537,192.01,191.9,15.11293537]
[1730996697906,12.50993537,192.01,191.9,12.50993537]
[1730996698109,12.50993537,192.01,191.92,2.6027]
[1730996698513,2.5593,192.04,191.92,2.6027]
[1730996698514,12.50993537,192.03,191.94,2.6024]
[1730996698914,12.50993537,192.03,191.92,12.50993537]
[1730996699111,2.6019,191.99,191.93,2.6025]
[1730996699817,2.6019,191.99,191.94,2.6024]
[1730996700414,2.6019,191.99,191.92,16.58993537]
[1730996700608,12.50993537,192.03,191.95,2.6023]
[1730996700609,2.6017,192.0,191.95,2.6023]
[1730996700814,12.50993537,192.03,191.92,16.58993537]
[1730996701213,2.6019,191.99,191.93,2.6025]
[1730996701809,2.6019,191.99,191.94,2.6024]
[1730996702816,12.50993537,192.03,191.94,2.6024]
[1730996703016,2.6019,191.98,191.93,2.6025]
[1730996703221,2.5593,192.04,191.9,16.58993537]
[1730996703222,12.50993537,192.01,191.9,16.58993537]
[1730996703621,2.6022,191.97,191.92,2.6027]
[1730996704018,12.50993537,192.01,191.92,2.6027]
[1730996704225,2.6022,191.96,191.92,2.6027]
[1730996705325,2.6022,191.96,191.91,2.6028]
[1730996706728,2.6022,191.96,191.9,16.58993537]
[1730996706729,2.6019,191.99,191.94,2.6024]
[1730996706927,15.06923537,192.04,191.94,2.6024]
[1730996707121,15.06923537,192.04,191.92,12.50993537]
[1730996707826,2.6019,191.98,191.93,2.6025]
[1730996709020,15.06923537,192.04,191.92,12.50993537]
[1730996709526,15.06923537,192.04,191.92,16.58993537]
[1730996709733,2.6024,191.95,191.92,4.08]
[1730996709930,12.50993537,191.99,191.89,2.4656]
[1730996710126,2.6026,191.93,191.89,2.4656]
[1730996710425,12.50993537,191.99,191.88,12.50993537]
[1730996710625,2.6021,191.97,191.93,12.50993537]
[1730996710833,2.6021,191.97,191.93,15.11253537]
[1730996711332,15.06923537,192.04,191.93,12.50993537]
[1730996711539,2.5593,192.04,191.95,12.50993537]
[1730996711834,48.39195232,192.05,191.98,12.50993537]
[1730996712129,2.588,192.07,191.98,12.50993537]
[1730996712330,2.601,192.05,191.98,12.50993537]
[1730996712531,15.08833537,192.09,191.98,12.50993537]
[1730996712932,2.6011,192.05,192.0,2.6015]
[1730996713122,2.6011,192.05,191.99,4.08]
[1730996713325,15.08833537,192.09,191.99,4.08]
[1730996713731,15.08833537,192.09,191.95,4.9512]
[1730996713930,15.08833537,192.09,191.96,12.50993537]
[1730996714128,2.6015,192.02,191.96,15.11203537]
[1730996714530,15.08833537,192.09,191.96,15.11203537]
[1730996714731,2.6015,192.01,191.96,15.11213537]
[1730996716039,2.601,192.06,191.96,12.50993537]
[1730996716339,12.50993537,192.06,191.96,12.50993537]
[1730996716842,2.6017,192.0,191.96,12.50993537]
[1730996719438,12.50993537,192.06,191.96,12.50993537]
[1730996720142,2.6017,192.0,191.96,12.50993537]
[1730996720443,15.08833537,192.09,191.99,12.50993537]
[1730996720740,12.50993537,192.08,191.99,12.50993537]
[1730996721141,12.50993537,192.08,191.97,16.56993537]
[1730996721337,12.50993537,192.08,191.97,12.50993537]
[1730996721742,12.50993537,192.08,191.95,4.9512]
[1730996721946,12.50993537,192.08,191.97,12.50993537]
[1730996722243,12.50993537,192.08,191.97,15.11193537]
[1730996722642,2.6015,192.01,191.97,15.11193537]
[1730996723439,12.50993537,192.08,191.97,15.11193537]
[1730996724251,12.50993537,192.08,191.99,12.50993537]
[1730996724839,15.57,192.07,191.95,2.435]
[1730996725035,12.50993537,192.0,191.88,15.11313537]
[1730996725247,2.6026,191.94,191.88,15.11313537]
[1730996725544,12.50993537,192.0,191.88,15.11313537]
[1730996725747,2.6024,191.95,191.91,12.50993537]
[1730996726245,12.50993537,192.0,191.91,12.50993537]
[1730996726246,2.6025,191.94,191.91,12.50993537]
[1730996726544,12.50993537,192.0,191.88,12.50993537]
[1730996726941,2.6026,191.93,191.88,12.50993537]
[1730996728145,12.50993537,192.0,191.88,12.50993537]
[1730996728449,12.50993537,192.0,191.88,15.11313537]
[1730996728947,2.6026,191.94,191.88,15.11313537]
[1730996729149,12.50993537,192.0,191.88,15.11313537]
[1730996729650,2.6026,191.94,191.88,15.11313537]
[1730996729947,2.6025,191.94,191.88,15.11313537]
[1730996730145,16.56993537,192.0,191.88,15.11313537]
[1730996731451,2.6024,191.95,191.9,2.603]
[1730996731653,2.6024,191.95,191.91,12.50993537]
[1730996732040,2.6027,191.93,191.91,12.50993537]
[1730996733348,16.56993537,192.0,191.88,12.50993537]
[1730996733549,2.603,191.9,191.88,12.50993537]
[1730996735657,16.56993537,192.0,191.89,2.6031]
[1730996735860,16.56993537,192.0,191.9,12.50993537]
[1730996736055,2.6023,191.96,191.9,12.50993537]
[1730996736357,2.6023,191.96,191.9,15.11283537]
[1730996736851,2.6023,191.95,191.9,15.11283537]
[1730996740362,2.6025,191.94,191.9,15.11283537]
[1730996740564,2.5019,192.01,191.91,2.6028]
[1730996740766,2.6019,191.98,191.91,2.6028]
[1730996741058,2.5019,192.01,191.91,2.6028]
[1730996741263,2.6024,191.95,191.9,15.11283537]
[1730996743959,4.06,192.02,191.9,15.11283537]
[1730996744560,2.6021,191.97,191.91,2.6027]
[1730996744761,2.6021,191.97,191.93,12.50993537]
[1730996745665,2.6019,191.99,191.94,2.6023]
[1730996748571,2.6161,192.04,191.92,12.50993537]
[1730996748771,12.50993537,192.03,191.92,12.50993537]
[1730996749073,2.6021,191.97,191.92,15.11253537]
[1730996749267,12.50993537,192.03,191.92,12.50993537]
[1730996749664,2.6021,191.97,191.92,15.11253537]
[1730996750371,2.6021,191.97,191.93,2.6026]
[1730996751562,2.6021,191.97,191.92,15.11253537]
[1730996751765,12.50993537,192.03,191.92,12.50993537]
[1730996752567,2.6024,191.95,191.92,12.50993537]
[1730996754669,12.50993537,192.0,191.85,39.08318081]
[1730996754870,12.50993537,192.0,191.87,12.50993537]
[1730996755178,4.04,191.99,191.87,12.50993537]
[1730996755370,2.6028,191.92,191.9,8.00446589]
[1730996755568,8.00446589,191.97,191.91,8.00446589]
[1730996755970,2.6027,191.93,191.91,8.00446589]
[1730996756574,8.00446589,191.97,191.91,8.00446589]
[1730996756778,2.6027,191.92,191.91,8.00446589]
[1730996756971,4.04,191.99,191.91,8.00446589]
[1730996757167,2.6023,191.96,191.93,8.00446589]
[1730996757466,8.00446589,191.98,191.93,8.00446589]
[1730996757667,2.6025,191.94,191.93,8.00446589]
[1730996759365,2.6025,191.94,191.84,4.04]
[1730996759366,2.6025,191.94,191.9,12.50335445]
[1730996759779,2.6025,191.94,191.9,15.10635445]
[1730996760981,2.6025,191.94,191.9,2.603]
[1730996761168,2.6025,191.94,191.9,15.10635445]
[1730996762383,2.6021,191.97,191.93,12.50335445]
[1730996762686,2.6161,192.04,191.96,12.50335445]
[1730996763578,2.6016,192.0,191.96,15.10545445]
[1730996764186,2.601,192.05,192.0,2.6016]
[1730996764481,5.0628,192.12,192.02,12.50335445]
[1730996764670,2.6004,192.09,192.02,15.10465445]
[1730996764876,5.0628,192.12,192.02,15.10465445]
[1730996765072,5.0628,192.12,192.02,12.50335445]
[1730996765282,2.6007,192.08,192.02,12.50335445]
[1730996767981,2.6007,192.07,192.02,12.50335445]
[1730996770178,5.0628,192.12,192.02,12.50335445]
[1730996770680,2.6007,192.08,192.02,12.50335445]
[1730996770986,5.0628,192.12,192.02,15.10475445]
[1730996773189,2.6004,192.09,192.02,15.10475445]
[1730996773489,5.0628,192.12,192.02,15.10475445]
[1730996773680,2.6007,192.08,192.02,15.10475445]
[1730996774694,5.0628,192.12,192.02,15.10475445]
[1730996774884,2.6007,192.07,192.02,15.10475445]
[1730996775284,5.0628,192.12,192.0,2.6015]
[1730996775586,5.0628,192.12,192.02,12.50335445]
[1730996776891,2.6008,192.07,192.02,15.10475445]
[1730996777991,2.6008,192.06,192.02,12.50335445]
[1730996778593,2.6008,192.06,191.95,39.06468785]
[1730996778594,12.50335445,192.09,191.95,39.06468785]
[1730996778892,12.50335445,192.09,191.98,12.50335445]
[1730996779093,2.6013,192.03,191.98,15.10515445]
[1730996779288,12.50335445,192.09,191.98,12.50335445]
[1730996779487,7.99425942,192.08,192.03,7.99425942]
[1730996780886,12.03425942,192.11,192.06,7.99425942]
[1730996781796,2.6007,192.07,192.06,7.99425942]
[1730996786598,7.99425942,192.13,192.03,2.6012]
[1730996786793,7.99425942,192.13,192.09,7.99425942]
[1730996787495,7.99425942,192.13,192.05,2.6009]
[1730996787688,2.4202,192.15,191.97,43.10204464]
[1730996787689,7.99425942,192.12,191.97,43.10204464]
[1730996787885,7.99425942,192.1,191.97,43.10204464]
[1730996788090,7.99425942,192.1,192.05,7.99425942]
[1730996788489,2.6008,192.07,192.05,7.99425942]
[1730996790200,7.99425942,192.12,192.06,7.99425942]
[1730996790494,48.3538365,192.17,192.08,7.99425942]
[1730996790801,2.6003,192.1,192.08,7.99425942]
[1730996791098,48.3538365,192.17,192.09,7.99425942]
[1730996791396,48.3538365,192.17,192.12,7.99425942]
[1730996791397,56.34809592,192.17,192.12,7.99425942]
[1730996792490,4.8523,192.19,192.14,7.99425942]
[1730996793097,4.02,192.23,192.07,2.5822]
[1730996793292,10.49535942,192.25,192.07,2.5822]
[1730996793499,2.5011,192.25,192.22,7.99425942]
[1730996793699,2.5985,192.24,192.22,7.99425942]
[1730996794090,2.5792,192.26,192.22,7.99425942]
[1730996794292,2.5983,192.25,192.23,7.99425942]
[1730996794497,115.24804,192.29,192.23,7.99425942]
[1730996794697,2.5981,192.27,192.24,7.99425942]
[1730996794897,123.24229942,192.29,192.24,7.99425942]
[1730996795195,117.84574,192.29,192.26,7.99425942]
[1730996795397,115.24804,192.29,192.24,12.47258139]
[1730996796605,115.24804,192.29,192.26,12.47258139]
[1730996803700,2.598,192.28,192.26,12.47258139]
[1730996803905,115.24804,192.29,192.26,12.47258139]
[1730996804512,115.24804,192.29,192.21,12.47258139]
[1730996805510,2.5983,192.25,192.21,12.47258139]
[1730996805810,115.24804,192.29,192.21,12.47258139]
[1730996806810,115.24804,192.29,192.16,10.1652]
[1730996806811,127.72062139,192.29,192.16,10.1652]
[1730996807015,127.72062139,192.29,192.18,12.47258139]
[1730996807712,2.5985,192.23,192.18,12.47258139]
[1730996808108,127.72062139,192.29,192.18,12.47258139]
[1730996808319,2.5984,192.24,192.2,12.47258139]
[1730996810508,127.72062139,192.29,192.2,12.47258139]
[1730996810710,127.72062139,192.29,192.2,15.07148139]
[1730996810711,115.24804,192.29,192.2,15.07148139]
[1730996810911,115.24804,192.29,192.2,12.47258139]
[1730996811512,2.5982,192.26,192.2,15.07148139]
[1730996812916,2.5983,192.25,192.2,15.07148139]
[1730996814427,115.24804,192.29,192.22,12.47258139]
[1730996815019,2.598,192.28,192.23,2.5985]
[1730996815216,2.598,192.28,192.25,12.47258139]
[1730996815524,115.24804,192.29,192.27,7.98953089]
[1730996816429,117.84584,192.29,192.27,7.98953089]
[1730996816629,115.24804,192.29,192.27,7.98953089]
[1730996816923,2.5979,192.28,192.27,7.98953089]
[1730996817719,115.24804,192.29,192.27,7.98953089]
[1730996820924,17.20228725,192.29,192.27,7.98953089]
[1730996821129,13.26428725,192.29,192.28,2.5979]
[1730996821330,7.98953089,192.4,192.27,7.98953089]
[1730996821524,7.98953089,192.4,192.35,7.98953089]
[1730996821725,2.5968,192.36,192.35,7.98953089]
[1730996823434,2.5967,192.37,192.35,7.98953089]
[1730996823724,7.98953089,192.39,192.29,6.5977]
[1730996823924,7.4867,192.42,192.32,7.98953089]
[1730996823925,2.5969,192.36,192.32,7.98953089]
[1730996824329,2.5969,192.36,192.34,7.98953089]
[1730996824719,7.98953089,192.4,192.34,7.98953089]
[1730996825823,2.5966,192.38,192.34,7.98953089]
[1730996826029,7.98953089,192.38,192.33,7.98953089]
[1730996826230,2.5969,192.36,192.3,2.5975]
[1730996826436,7.4867,192.42,192.29,7.98953089]
[1730996826437,7.98953089,192.34,192.29,7.98953089]
[1730996827424,2.5974,192.32,192.29,7.98953089]
[1730996827624,4.8539,192.33,192.29,7.98953089]
[1730996828233,2.5976,192.31,192.29,7.98953089]
[1730996829525,7.98953089,192.32,192.25,39.00252104]
[1730996829723,2.5977,192.3,192.27,7.98953089]
[1730996830427,4.8539,192.33,192.27,7.98953089]
[1730996830729,2.5974,192.31,192.27,7.98953089]
[1730996831329,2.5977,192.29,192.27,7.98953089]
[1730996831534,4.8539,192.33,192.27,7.98953089]
[1730996831734,4.8539,192.33,192.29,7.98953089]
[1730996832230,2.5974,192.32,192.29,7.98953089]
[1730996832438,4.8539,192.33,192.29,7.98953089]
[1730996833646,4.8539,192.33,192.28,7.98953089]
[1730996833838,2.5975,192.31,192.28,7.98953089]
[1730996834440,2.5977,192.29,192.24,6.5984]
[1730996834635,7.98953089,192.32,192.27,7.98953089]
[1730996835032,2.5978,192.29,192.27,7.98953089]
[1730996836442,2.5977,192.3,192.27,7.98953089]
[1730996836937,7.98953089,192.32,192.27,7.98953089]
[1730996837731,2.5977,192.29,192.24,2.5984]
[1730996837936,2.5977,192.29,192.27,7.98953089]
[1730996839137,7.98953089,192.32,192.05,37.5]
[1730996839340,2.598,192.27,192.25,7.98953089]
[1730996839640,7.98953089,192.29,192.23,7.98953089]
[1730996839939,7.98953089,192.28,192.21,7.98953089]
[1730996840136,7.98953089,192.28,192.16,4.0]
[1730996840341,7.98953089,192.28,192.21,7.98953089]
[1730996840539,2.5986,192.23,192.21,7.98953089]
[1730996840846,2.5671,192.31,192.21,7.98953089]
[1730996841039,2.5671,192.31,192.25,7.98953089]
[1730996841040,10.55663089,192.31,192.25,7.98953089]
[1730996842143,7.98953089,192.29,192.16,4.0]
[1730996842343,7.98953089,192.29,192.22,7.98953089]
[1730996842543,2.5983,192.25,192.22,7.98953089]
[1730996842739,7.98953089,192.29,192.22,7.98953089]
[1730996843050,2.5982,192.26,192.22,7.98953089]
[1730996843545,2.5984,192.25,192.2,2.5989]
[1730996843747,2.5984,192.25,192.22,7.98953089]
[1730996845540,7.98953089,192.29,192.22,7.98953089]
[1730996845741,2.5982,192.26,192.22,7.98953089]
[1730996845942,2.5982,192.26,192.22,10.58823089]
[1730996846343,2.5982,192.26,192.22,7.98953089]